Cogmind - Beta 13 @@@ ROGUE MODE // 2024.04.13 @ 21:20:45 Player: paplal Result: Destroyed by L-31 Rogue with Katana Performance ------------- Evolutions (1) 500 Regions Visited (3) 600 Robots Destroyed (14) 70 Value Destroyed (244) 244 Prototype IDs (0) 0 Alien Tech Used (0) 0 Bonus (0) 0 TOTAL SCORE: 1414 Bonus ------- None Cogmind --------- Core Integrity 0/400 Matter 260/300 Energy 0/100 System Corruption 0% Temperature Cool (0) Movement Core (50) Location -9/Materials Parts ------- > --- POWER (1) -------- (None) > --- PROPULSION (3) --- (None) > --- UTILITY (3) ------ Visual Processing Unit Signal Interpreter ECM Suite > --- WEAPON (2) ------- (None) > --- INVENTORY (5) ---- Light Treads Datajack Peak State ------------ > --- POWER ------------ Light Nuclear Core > --- PROPULSION ------- Aluminum Leg Aluminum Leg Aluminum Leg > --- UTILITY ---------- Visual Processing Unit Signal Interpreter ECM Suite > --- WEAPON ----------- EM Pulse Gun Particle Gun > --- INVENTORY -------- Ion Engine Light Treads Light Treads Medium Laser Datajack [Rating: 13] Favorites ----------- Power Ion Engine Engine Ion Engine Power Core Light Nuclear Core Propulsion Aluminum Leg Treads Light Treads Leg Aluminum Leg Wheel Compact Wheel Utility Signal Interpreter Device ECM Suite Storage Small Storage Unit Processor Signal Interpreter Weapon EM Pulse Gun Energy Gun EM Pulse Gun Energy Cannon Light EM Pulse Cannon Ballistic Gun Light Assault Rifle Special Melee Weapon Datajack Build | -11 -10 -10 -9 ------- Run | Yrd Mat Min Mat Slots Evolved 2 | . . . 2 Power . | . . . . Propulsion 1 | . . . 1 Utility 1 | . . . 1 Weapon . | . . . . Parts Attached 24 | 5 4 3 12 Power 3 | 1 . 1 1 Engine 2 | 1 . . 1 Core 1 | . . 1 . Reactor . | . . . . Propulsion 9 | 2 2 1 4 Treads 3 | . . . 3 Leg 4 | . 2 1 1 Wheel 2 | 2 . . . Hover . | . . . . Flight . | . . . . Utility 4 | 1 1 . 2 Device 1 | . . . 1 Storage 1 | 1 . . . Processor 2 | . 1 . 1 Hackware . | . . . . Protection . | . . . . Artifact . | . . . . Weapon 8 | 1 1 1 5 Energy Gun 3 | . 1 1 1 Energy Cannon 2 | . . . 2 Ballistic Gun 1 | 1 . . . Ballistic Cannon . | . . . . Launcher . | . . . . Special Weapon . | . . . . Impact Weapon . | . . . . Slashing Weapon . | . . . . Piercing Weapon . | . . . . Special Melee Weapon 2 | . . . 2 Unidentified Prototypes . | . . . . Parts Lost 11 | . 1 2 8 Power 2 | . . 1 1 Propulsion 5 | . 1 . 4 Utility . | . . . . Weapon 4 | . . 1 3 Highest Loss Streak 7 | . 1 1 7 To Critical Strikes . | . . . . Average Slot Usage (%) 90 | . 94 93 72 Engine 8 | . 14 5 2 Core 4 | . . 8 5 Leg 24 | . 23 28 16 Wheel 1 | . 4 . . Device 1 | . . . 9 Storage 12 | . 14 14 2 Processor 14 | . 13 14 19 Energy Gun 14 | . 9 22 9 Ballistic Gun 5 | . 14 . . Naked Turns . | . . . . Heaviest Build 17 | 11 13 15 17 Greatest Support 32 | 32 32 20 30 Greatest Overweight (x) 3 | . . . 3 Average Overweight (x) . | . . . . Largest Inventory Capacity 8 | 8 8 8 8 Average Capacity 7 | 6 8 8 5 Most Carried 8 | 8 8 8 7 Average Carried 6 | 5 7 7 4 Final Capacity 8 | 8 8 8 5 Final Carried 8 | 8 8 7 2 Class Distribution -------------------- 100% | Mutant Dominant Class ---------------- Mutant | -10/Materials Mutant | -10/Mines Mutant | -9/Materials Resources | -11 -10 -10 -9 ----------- Run | Yrd Mat Min Mat Matter Collected 384 | 254 56 25 49 Remotely . | . . . . Salvage Created 379 | 58 118 154 49 Parts 29 | 2 15 11 1 Haulers Intercepted . | . . . . Recyclers Shooed . | . . . . Parts Field Recycled . | . . . . Retrieved Matter . | . . . . Parts Self-Destructed . | . . . . Prevented . | . . . . Kills | -11 -10 -10 -9 ------- Run | Yrd Mat Min Mat Combat Hostiles Destroyed 10 | . 7 2 1 Guns 9 | . 7 1 1 AOE 1 | . . 1 . Classes Destroyed 5 | 1 2 2 . Builder 1 | . . 1 . Tunneler 2 | . . 2 . Recycler 1 | 1 . . . Swarmer 6 | . 6 . . Grunt 4 | . 1 2 1 Best Kill Streak 3 | 1 3 2 1 Combat Bots Only 3 | . 3 2 1 Max Kills in Single Turn 1 | 1 1 1 1 Gunslinging . | . . . . Exploded 1 | . . 1 . Melee . | . . . . Uniques/NPCs Destroyed . | . . . . Combat | -11 -10 -10 -9 -------- Run | Yrd Mat Min Mat Hostile Shots Fired 98 | . 48 19 31 Missed 22 | . 14 6 2 Damage Taken 1374 | . 300 185 889 Core 514 | . 49 40 425 Absorbed by Shields . | . . . . Core Remaining (%) 82 | 100 . 64 . Volleys Fired 51 | 4 21 16 10 Largest 2 | 1 2 2 1 Hottest 105 | 20 60 105 65 Shots Fired 66 | 4 30 22 10 Gun 65 | 4 30 22 9 Cannon 1 | . . . 1 Launcher . | . . . . Special . | . . . . Kinetic 26 | 4 21 1 . Thermal 8 | . . 5 3 Explosive . | . . . . Electromagnetic 32 | . 9 16 7 Robot Hit Streak 8 | 2 4 8 4 Robot Miss Streak 3 | 1 3 2 3 Penetration Max . | . . . . Secondary Targets . | . . . . Shots Hit Robots 41 | 3 16 15 7 Core Hits 20 | 2 8 8 2 Critical Kills . | . . . . Critical Parts Destroyed . | . . . . Critical Strikes 1 | . . . 1 Burn 1 | . . . 1 Melee Attacks 2 | . . . 2 Impact . | . . . . Slashing . | . . . . Piercing . | . . . . Sneak Attacks . | . . . . Combat Hostiles . | . . . . Follow-up Attacks . | . . . . Damage Inflicted 595 | 23 155 293 124 Guns 437 | 23 155 210 49 Cannons 19 | . . . 19 Explosions 139 | . . 83 56 Melee . | . . . . Ramming . | . . . . Kinetic 143 | 23 120 . . Thermal 213 | . . 144 69 Explosive . | . . . . Electromagnetic 239 | . 35 149 55 Impact . | . . . . Slashing . | . . . . Piercing . | . . . . Highest Corruption . | . . . . Average Corruption . | . . . . Corruption Purged . | . . . . Corruption Blocked . | . . . . Overload Shots . | . . . . Overflow Damage 12 | . . 5 7 Projectiles . | . . . . Explosions 12 | . . 5 7 Melee . | . . . . Knockbacks . | . . . . Impact . | . . . . Kinetic . | . . . . Secondary . | . . . . Self-Inflicted Damage 21 | . . . 21 Shots 1 | . . . 1 Rammed . | . . . . Targets Rammed . | . . . . Kicked . | . . . . Crushed . | . . . . Highest Temperature 102 | . 40 102 54 Average Temperature 26 | . 19 30 22 Received Heat Transfer 126 | . . 102 24 Siege Activations . | . . . . Robots Corrupted . | . . . . Combat Hostiles . | . . . . Parts Fried . | . . . . Impact Corruptions . | . . . . Robots Melted . | . . . . Combat Hostiles . | . . . . Parts Melted . | . . . . Heat Transferred 459 | . . 298 161 Parts Sabotaged . | . . . . Parts Stolen . | . . . . Parts Stripped . | . . . . Power Chain Reactions 3 | . . 2 1 Alert | -11 -10 -10 -9 ------- Run | Yrd Mat Min Mat Peak Influence 190 | 5 190 127 69 Initial 73 | . 3 73 49 Average 74 | . 90 94 32 Maximum Alert Level . | . . . . Low Security (%) 100 | 100 100 100 100 Level 1 . | . . . . Level 2 . | . . . . Level 3 . | . . . . Level 4 . | . . . . Level 5 . | . . . . High Security . | . . . . Max Security . | . . . . Squads Dispatched 1 | . 1 . . Investigation 1 | . 1 . . Extermination . | . . . . Reinforcement . | . . . . Assault . | . . . . Garrison . | . . . . Intercept . | . . . . Searches Triggered . | . . . . Construction Impeded . | . . . . Haulers Reinforced . | . . . . Active Scanning Responses . | . . . . Cargo Convoy Interrupts . | . . . . Stealth | -11 -10 -10 -9 --------- Run | Yrd Mat Min Mat Distress Signals 1 | . . . 1 Communications Jammed . | . . . . Distress Signals . | . . . . Times Spotted 15 | . 9 4 2 Peak Tracking Total 4 | . 4 2 2 Tactical Retreats . | . . . . Traps | -11 -10 -10 -9 ------- Run | Yrd Mat Min Mat Traps Triggered 2 | . 2 . . Indirectly . | . . . . Trap Hack Attempts . | . . . . Triggered . | . . . . Disarmed . | . . . . Reprogrammed . | . . . . Reused . | . . . . Traps Extracted . | . . . . Installed . | . . . . Triggered . | . . . . Machines | -11 -10 -10 -9 ---------- Run | Yrd Mat Min Mat Machines Disabled 1 | . 1 . . Max in Single Turn 1 | . 1 . . Machines Repaired . | . . . . Machines Dismantled . | . . . . Machines Sabotaged . | . . . . Overloaded Fab Kills . | . . . . Hacking | -11 -10 -10 -9 --------- Run | Yrd Mat Min Mat Machines Accessed 3 | . 3 . . Terminals 2 | . 2 . . Fabricators . | . . . . Repair Stations . | . . . . Recycling Units 1 | . 1 . . Scanalyzers . | . . . . Garrison Access . | . . . . Total Hacks 7 | . 7 . . Successful 5 | . 5 . . Failed 2 | . 2 . . Catastrophic . | . . . . Database Lockouts . | . . . . Manual . | . . . . Terminals 5 | . 5 . . Fabricators . | . . . . Repair Stations . | . . . . Recycling Units 2 | . 2 . . Scanalyzers . | . . . . Garrison Access . | . . . . Terminal Hacks 3 | . 3 . . Record 3 | . 3 . . Fabricator Hacks . | . . . . Repair Station Hacks . | . . . . Recycling Unit Hacks 2 | . 2 . . Report Inventory 1 | . 1 . . Retrieve Components 1 | . 1 . . Scanalyzer . | . . . . Garrison Access Hacks . | . . . . Unauthorized Hacks . | . . . . Terminals . | . . . . Fabricators . | . . . . Repair Stations . | . . . . Recycling Units . | . . . . Scanalyzers . | . . . . Garrison Access . | . . . . Data Cores Recovered . | . . . . Used . | . . . . Hacking Detections 1 | . 1 . . Full Trace Events 1 | . 1 . . Feedback Events . | . . . . Feedback Blocked . | . . . . Robot Schematics Acquired . | . . . . Robots Built . | . . . . Authchips . | . . . . Time . | . . . . Total Robot Build Rating . | . . . . Part Schematics Acquired . | . . . . Parts Built . | . . . . Authchips . | . . . . Time . | . . . . Total Part Build Rating . | . . . . Parts Repaired . | . . . . Time . | . . . . Parts Recycled . | . . . . Recycled Matter . | . . . . Retrieved Matter . | . . . . Retrieved Components 3 | . 3 . . Parts Scanalyzed . | . . . . Part Schematics Acquired . | . . . . Parts Damaged . | . . . . Bothacking | -11 -10 -10 -9 ------------ Run | Yrd Mat Min Mat Used RIF Installer . | . . . . Robots Hacked 1 | . . . 1 Non-combat . | . . . . Combat 1 | . . . 1 Robot Hacks Applied 1 | . . . 1 parse_system 1 | . . . 1 Relay Couplers Released . | . . . . Fabnet Peak Effective % . | . . . . Robots Rewired . | . . . . Allies Hacked . | . . . . Hacks Repelled . | . . . . Allies | -11 -10 -10 -9 -------- Run | Yrd Mat Min Mat Total Allies . | . . . . Largest Group . | . . . . Highest-Rated Group . | . . . . Highest-Rated Ally . | . . . . Total Orders . | . . . . Ally Attacks . | . . . . Total Damage . | . . . . Kills . | . . . . Allies Corrupted . | . . . . Allies Melted . | . . . . Intel | -11 -10 -10 -9 ------- Run | Yrd Mat Min Mat Robot Analysis Total . | . . . . Derelict Logs Recovered 2 | . . 2 . Drone Launches . | . . . . Drone Recoveries . | . . . . Exploration | -11 -10 -10 -9 ------------- Run | Yrd Mat Min Mat Turns Passed 907 | 98 325 351 133 Spaces Moved 616 | 83 226 256 51 Core 20 | 16 . . 4 Treads 8 | . . . 8 Legs 497 | . 202 256 39 Wheels 91 | 67 24 . . Hover . | . . . . Flight . | . . . . Fastest Speed 50 | 50 100 120 50 Average Speed 115 | 90 117 120 123 Slowest Speed 200 | 100 120 120 200 Overloaded Moves . | . . . . Propulsion Burnouts . | . . . . Robots Hopped . | . . . . Cave-ins Triggered . | . . . . Exploration Rate (%) 25 | 4 39 50 7 Regions Visited 3 Branch Regions 1 Pre-discovered Areas . | . . . . Known Exits Taken 2 | . 1 1 . Unknown Exits Taken 1 | 1 . . . Scrap Searched . | . . . . Spaces Dug . | . . . . Terrain Destroyed 15 | . . 9 6 Melee . | . . . . Projectile . | . . . . AOE 15 | . . 9 6 Terrain Rammed . | . . . . Walls Destroyed . | . . . . Machines Disabled . | . . . . Actions | -11 -10 -10 -9 --------- Run | Yrd Mat Min Mat Total 750 | 101 260 279 110 Wait 27 | . . . 27 Move 613 | 82 225 255 51 Hop . | . . . . Pick Up 22 | 10 6 2 4 Fast Attach 6 | 3 1 1 1 Attach 15 | 2 3 1 9 Detach 1 | . . . 1 Swap 3 | . . 1 2 Drop 10 | . 4 3 3 Fire 51 | 4 21 16 10 Melee 2 | . . . 2 Ram . | . . . . Kick . | . . . . Crush . | . . . . Escape Stasis . | . . . . Rewire . | . . . . Trap . | . . . . Miscellaneous . | . . . . Route ------- -11/Scrapyard -10/Materials -10/Mines -9/Materials (discovered 2 exits: Mat / Min) History --------- Turn | Location | Event 7 | -11/Scrapyard | Discovered new exit (range 15) 99 | -11/Scrapyard | Entered Materials 305 | -10/Materials | Build established: Mutant 372 | -10/Materials | Discovered new exit (range 14) 423 | -10/Materials | Identified exit to Mines 424 | -10/Materials | Entered Mines 430 | -10/Mines | Met a Derelict bent on vengeance 483 | -10/Mines | Learned location of 1 exit from Materials 492 | -10/Mines | Learned 2 Materials zone layouts 762 | -10/Mines | Discovered new exit (range 8) 764 | -10/Mines | Assembled infested the area 769 | -10/Mines | Assisted by a Guerilla fighting off Assembled 769 | -10/Mines | Identified exit to Materials 775 | -10/Mines | Entered Materials 775 | -9/Materials | Evolved 2 slots: Propulsion x1, Utility x1 776 | -9/Materials | Identified exit to Mines 777 | -9/Materials | Identified exit to Materials 879 | -9/Materials | Core integrity fell below 50% 899 | -9/Materials | Lost 7 parts (1p3n3w) 899 | -9/Materials | Core integrity fell below 20% 908 | -9/Materials | Destroyed by L-31 Rogue with Katana Last Messages --------------- 00843_ EM Pulse Gun destroyed. 00844_ Jacked L-31 Rogue... Right-click on available options for more info. Keyboard players can use Shift-a~z. >>parse_system Reading system data... 00846_ Lgt. Nuclear Core destroyed. 00846_ Jacked L-31 Rogue... 00847_ Dropped Datajack. 00858_ Lgt. EM Pulse Cannon destroyed. 00858_ Aluminum Leg destroyed. 00868_ L-31 Rogue suffers critical hit (Burn). 00868_ Particle Gun destroyed. 00873_ Lgt. Treads severed. 00878_ Acquired Datajack. 00881_ Ion Engine severed. 00883_ Lgt. Treads severed. 00884_ Acquired Lgt. Treads. 00904_ R-06 Scavenger collects Ion Engine. 00905_ Lgt. Treads destroyed. Map ----- +----------------------------------------------------+ | ?????????????????????????????????????????????????? | | ?????????????????????????????????????????????????? | | ?????????????????????????????????????????????????? | | ?????????????????????????????????????????????????? | | ?????????????????????????????????????????????????? | | ?????????????????????????????????????????????????? | | ?????????????????????????????????????????????????? | | ?????????????????????????????????????????????????? | | ???????????????????????? ??????????????????????? | | ???????????????????????? ??????????????????????? | | ???????????????????????? ??????????????????????? | | ???????????????????????# #?????????????????????? | | ???????????????????????# #?????????????????????? | | ???????????????????????+ +?????????????????????? | | ???????????????????????# #?????????????????????? | | ???????????????????????# #?????????????????????? | | ???????????????????????# #?????????????????????? | | ???????????????????????# #?????????????????????? | | ???????????????????????# #?????????????????????? | | ???????????????????????# #?????????????????????? | | ???????????????????????+ #?????????????????????? | | ???????????????????????# #?????????????????????? | | ???????????????????????# #?????????????????????? | | ???????????????????????# #?????????????????????? | | ???????????????????????# #?????####????????????? | | ???????????????????????# @ #???? #????????????? | | ???????????????????????# l #??? #????????????? | | ???????????????????????# #?? #????????????? | | ???????????????????????# #? #????????????? | | ???????????????????????# + #????????????? | | ??# ???????????????????# %# # #?# " | | ??# ???????????????????##; ; # #?# | | ??# ????????????????????#; ; # #?# " | | ??# ???????????########?#;r; # #?# " | | ??##???????????# #?## ##+####### #?# " | | ???????????????# ! #### #?????# #?# | | ???????????????# """ + #?????###+####?# | | ???????????????# """ [# ##### ######## #???##### | | ???????????????# """ # #???? #???????? | | ???????????????# # #????######### #???????? | | ???????????????########+###??????????## ##???????? | | ????????????????# #???????????# #????????? | | ????????????????# ############# #????????? | | ????????????????# # #????????? | | ###?????????????# + #????????? | | #?????????????# # #????????? | | #?????????????# # #######+####???????? | | #?????????????# # #???# #???????? | | < #?????????????# #####???# #???????? | | #?????????????###########???????# #???????? | +----------------------------------------------------+ Best States ------------- Heat Dissipation 28 Energy Generation 14 Energy Capacity 250 Matter Stores 300 Matter Capacity 300 Sight Range 18 Terrain Scan Density 10 ECM Strength 1 Evasion (%) 55 Recoil Reduction 1 Item Schematics ----------------- None Robot Schematics ------------------ None Fabricated ------------ Nothing Alien Tech Used ----------------- None Achievements -------------- None Challenges ------------ None Game ------ Seed ContainmentTimingCorpse Manual? 0 Play Time 00:21:54 Cumulative 2.6 hours Start 2024.04.13 @ 20:54:38 End 2024.04.13 @ 21:20:45 Sessions 1 Manual Loads 0 Difficulty Rogue Special Mode None Game No. 4 Rogue 4 Adventurer 0 Explorer 0 Win Type - Total 0 Types 0/0/0/0/0/0/0/0/0 Lore% 1 Gallery% 6 Achievement% 5 Wizard Run 0 Options --------- Layout 2 ASCII 0 Keyboard 0 Movement Mouse Keybinds 0 Fullscreen 1 Font 48/Smallcaps Map View 25x22 Zoom Use 98% Tactical HUD 1 Map Filters NONE Filters NONE Steam 1 RUN: 9585b8ae-5770-45f5-8672-c513e4f19d7d